bitfinex-derivatives/quotes_SOLF0:USTF0_20250127
["timestamp","ask_amount","ask_price","bid_price","bid_amount"]
[1737980767388,2.452e-05,225.15,225.11,0.03406278]
[1737980767591,4.4445,225.12,225.11,0.03406278]
[1737980768290,4.4451,225.09,225.06,4.4456]
[1737980769289,4.4451,225.09,225.05,0.0286103]
[1737980769791,4.4456,225.06,225.05,0.0286103]
[1737980769989,10.41860534,225.07,224.93,10.41860534]
[1737980770185,10.41860534,225.07,224.92,1.4655]
[1737980770484,10.41860534,225.04,224.92,1.4655]
[1737980770886,4.4471,224.99,224.92,1.4655]
[1737980771189,4.4471,224.99,224.96,0.03086746]
[1737980771585,0.03074564,225.0,224.96,0.03086746]
[1737980771889,10.41860534,224.98,224.85,1.4655]
[1737980772683,10.41860534,224.95,224.85,1.4655]
[1737980772989,0.03004443,224.92,224.85,1.4655]
[1737980773787,4.47844443,224.92,224.85,1.4655]
[1737980774281,0.03004443,224.92,224.84,51.96751699]
[1737980774486,10.44864977,224.92,224.78,10.41860534]
[1737980774681,10.41860534,224.92,224.78,10.41860534]
[1737980774885,0.03349822,224.87,224.84,4.4498]
[1737980775086,0.03349822,224.87,224.78,10.41860534]
[1737980776191,0.03349822,224.87,224.84,4.4498]
[1737980776391,0.03349822,224.87,224.78,10.41860534]
[1737980777493,0.03349822,224.87,224.85,4.4498]
[1737980778493,0.03349822,224.87,224.86,4.4496]
[1737980779593,0.03349822,224.87,224.78,10.41860534]
[1737980779790,0.03349822,224.87,224.75,1.38]
[1737980779994,10.41860534,224.86,224.75,1.38]
[1737980780197,4.4502,224.83,224.71,301.67842832]
[1737980780393,4.4502,224.83,224.72,0.80086307]
[1737980780592,10.41860534,224.86,224.72,0.80086307]
[1737980780793,0.02992036,224.79,224.77,4.4513]
[1737980780995,4.4506,224.82,224.77,4.4513]
[1737980781193,10.41860534,224.86,224.71,57.5553418]
[1737980781194,0.03209341,224.8,224.71,57.5553418]
[1737980781393,0.03209341,224.8,224.76,4.4515]
[1737980781895,0.03209341,224.8,224.79,4.451]
[1737980782895,0.03209341,224.8,224.72,4.4523]
[1737980783095,0.03209341,224.8,224.69,19.47336586]
[1737980783501,0.03209341,224.8,224.7,0.8009579]
[1737980783694,0.03209341,224.8,224.62,21.18819766]
[1737980783695,16.71886586,224.8,224.65,0.801078]
[1737980783895,2.8086,224.79,224.66,0.801078]
[1737980784192,16.71886586,224.76,224.63,1.3768]
[1737980784791,0.02974504,224.72,224.63,1.3768]
[1737980785396,4.4526,224.71,224.66,4.4534]
[1737980785897,0.02974504,224.72,224.6,47.15825766]
[1737980786101,0.02974504,224.72,224.57,1.3348]
[1737980786302,0.02974504,224.72,224.58,0.80138778]
[1737980786503,4.4523,224.73,224.67,4.4532]
[1737980786703,16.71886586,224.76,224.67,4.4532]
[1737980786903,0.02894403,224.72,224.67,4.4532]
[1737980787104,0.02894403,224.72,224.58,16.71886586]
[1737980787305,0.02894403,224.72,224.59,0.80132818]
[1737980787499,1.4336,224.78,224.58,16.71886586]
[1737980787805,0.03239543,224.68,224.67,4.4534]
[1737980788100,4.4515,224.77,224.72,4.4522]
[1737980788403,9.11e-05,224.7,224.62,16.71886586]
[1737980788605,2.8086,224.79,224.66,16.71886586]
[1737980788805,2.8086,224.79,224.78,4.4512]
[1737980789104,1.3484,224.79,224.78,4.4512]
[1737980789306,1.3484,224.79,224.76,4.4514]
[1737980789506,1.3484,224.79,224.76,4.48020016]
[1737980789908,1.3484,224.79,224.76,0.02880016]
[1737980790110,1.3484,224.79,224.67,1.3979]
[1737980790501,1.3484,224.79,224.62,16.71886586]
[1737980790908,1.3484,224.79,224.63,0.80117857]
[1737980791110,4.4514,224.78,224.63,0.80117857]
[1737980791307,0.03161986,224.73,224.63,0.80117857]
[1737980792109,0.03161986,224.73,224.72,4.4522]
[1737980792712,0.03161986,224.73,224.62,16.71886586]
[1737980792907,0.03161986,224.73,224.6,2.7724]
[1737980793409,4.4526,224.71,224.6,2.7724]
[1737980793810,0.03395119,224.68,224.6,2.7724]
[1737980794009,0.03395119,224.68,224.67,4.4533]
[1737980794608,0.03395119,224.68,224.6,2.7724]
[1737980794815,0.03395119,224.68,224.6,1.3253]
[1737980795613,0.03395119,224.68,224.67,4.4534]
[1737980796314,0.03395119,224.68,224.6,1.3253]
[1737980799116,0.03395119,224.68,224.66,4.4535]
[1737980799613,0.03395119,224.68,224.6,1.3253]
[1737980799813,0.03395119,224.68,224.64,4.4539]
[1737980800015,0.03395119,224.68,224.6,1.3253]
[1737980801015,0.03395119,224.68,224.54,18.09796586]
[1737980801211,16.71886586,224.64,224.48,4.44409005]
[1737980801416,1.3553,224.67,224.49,0.80163601]
[1737980801717,0.02946928,224.58,224.49,0.80163601]
[1737980803115,0.02946928,224.58,224.57,4.4553]
[1737980806120,6.928e-05,224.58,224.57,4.4553]
[1737980806618,13.48905406,224.75,224.67,4.4532]
[1737980806814,13.48905406,224.75,224.57,1.3697]
[1737980806815,4.4528,224.7,224.57,1.3697]
[1737980807010,10.46905406,224.72,224.57,1.3697]
[1737980807212,10.46905406,224.72,224.67,4.4532]
[1737980807416,10.46905406,224.72,224.59,10.46905406]
[1737980807616,14.95278285,224.72,224.67,0.03235873]
[1737980807816,14.95278285,224.72,224.68,4.4531]
[1737980808521,10.50038285,224.72,224.67,0.03235873]
[1737980809018,4.453,224.7,224.67,0.03235873]
[1737980810124,10.50038285,224.72,224.67,0.03235873]
[1737980810423,4.4526,224.71,224.67,4.48565873]
[1737980810620,4.4526,224.71,224.67,0.03235873]
[1737980811326,10.50038285,224.72,224.67,0.03235873]
[1737980811625,4.4528,224.7,224.67,0.03235873]
[1737980812025,14.95288285,224.72,224.68,4.4531]
[1737980812324,14.95288285,224.72,224.67,0.03235873]
[1737980812525,14.95288285,224.72,224.67,4.48565873]
[1737980812726,10.50038285,224.72,224.67,4.48565873]
[1737980812926,4.4527,224.71,224.67,4.48565873]
[1737980814232,4.4528,224.7,224.67,0.03235873]
[1737980814527,10.46905406,224.68,224.46,10.46905406]
[1737980814726,10.46905406,224.61,224.46,10.46905406]
[1737980815423,10.46905406,224.61,224.49,0.80165778]
[1737980815622,0.02811293,224.57,224.47,1.3432]
[1737980815922,0.02811293,224.57,224.49,10.46905406]
[1737980816130,0.02811293,224.57,224.52,10.46905406]
[1737980816625,0.02811293,224.57,224.51,16.74560226]
[1737980816826,0.02811293,224.57,224.52,0.80153092]
[1737980817126,0.02811293,224.57,224.56,4.4555]
[1737980818528,1.4455,224.67,224.51,16.74560226]
[1737980818719,5.899,224.67,224.62,4.4542]
[1737980819623,4.4536,224.66,224.62,4.4542]
[1737980819825,1.47806407,224.67,224.62,0.02875987]
[1737980820227,4.454,224.64,224.62,0.02875987]
[1737980821925,0.03256407,224.67,224.62,0.02875987]
[1737980822130,0.03256407,224.67,224.66,4.4536]
[1737980823231,1.3797,224.81,224.63,16.74560226]
[1737980823427,1.3797,224.81,224.64,1.3721]
[1737980824032,2.8758,224.83,224.64,1.3721]
[1737980824226,2.8758,224.83,224.67,16.74560226]
[1737980824431,16.74560226,224.88,224.71,0.0311593]
[1737980824730,16.74560226,224.84,224.68,3.02]
[1737980825130,4.4506,224.82,224.75,4.4516]
[1737980825330,16.74560226,224.84,224.75,4.4516]
[1737980825625,0.02836701,224.81,224.76,0.03130796]
[1737980826429,0.02836701,224.81,224.79,4.4509]
[1737980827031,0.02836701,224.81,224.76,0.03130796]
[1737980827227,6.701e-05,224.81,224.8,4.4508]
[1737980827924,6.701e-05,224.81,224.76,0.03130796]
[1737980829330,16.74560226,224.8,224.57,16.74560226]
[1737980829530,4.4528,224.7,224.62,2.22785]
[1737980829830,4.4528,224.7,224.62,1.4266]
[1737980830221,4.4526,224.72,224.67,4.4533]
[1737980830421,0.03007128,224.68,224.67,4.4533]
[1737980833530,0.03007128,224.68,224.66,4.4534]
[1737980834127,0.03007128,224.68,224.67,4.4534]
[1737980834530,1.3334,224.8,224.64,16.7796906]
[1737980834733,1.3334,224.8,224.64,16.74560226]
[1737980835133,4.451,224.79,224.64,16.74560226]
[1737980835335,1.3334,224.8,224.64,16.74560226]
[1737980835628,0.02946963,224.74,224.7,0.03421513]
[1737980835827,0.02946963,224.74,224.7,4.48681513]
[1737980836032,0.02946963,224.74,224.7,0.03421513]
[1737980836437,0.02946963,224.74,224.71,4.4525]
[1737980836732,0.02946963,224.74,224.7,0.03421513]
[1737980837736,0.02946963,224.74,224.73,4.4522]
[1737980839337,0.02946963,224.74,224.7,0.03421513]
[1737980839539,0.02946963,224.74,224.71,4.4524]
[1737980840032,0.02946963,224.74,224.7,0.03421513]
[1737980842140,4.4525,224.72,224.7,0.03421513]
[1737980842439,0.02946963,224.74,224.7,0.03421513]
[1737980843441,16.77507189,224.74,224.7,0.03421513]
[1737980844339,0.02946963,224.74,224.7,0.03421513]
[1737980846240,4.4522,224.73,224.7,0.03421513]
[1737980846838,0.02946963,224.74,224.7,0.03421513]
[1737980847040,4.4526,224.71,224.7,0.03421513]
[1737980847241,10.45882727,224.73,224.59,10.45882727]
[1737980847541,4.4529,224.7,224.65,4.4537]
[1737980848540,4.48437736,224.7,224.65,4.48597635]
[1737980848743,0.03147736,224.7,224.68,4.4531]
[1737980849043,0.03147736,224.7,224.65,0.03227635]
[1737980849844,0.03147736,224.7,224.69,4.453]
[1737980850044,7.736e-05,224.7,224.69,4.453]
[1737980850839,7.736e-05,224.7,224.65,0.03227635]
[1737980852146,4.45287736,224.7,224.66,4.4535]
[1737980852642,7.736e-05,224.7,224.65,0.03227635]
[1737980853443,7.736e-05,224.7,224.67,4.4532]
[1737980853845,7.736e-05,224.7,224.65,0.03227635]
[1737980854247,7.736e-05,224.7,224.67,4.4533]
[1737980854447,7.736e-05,224.7,224.65,0.03227635]
[1737980855247,7.736e-05,224.7,224.66,4.4535]
[1737980855749,4.4531,224.69,224.65,0.03227635]
[1737980856247,4.45287736,224.7,224.66,4.4536]
[1737980857244,7.736e-05,224.7,224.65,0.03227635]
[1737980857445,7.736e-05,224.7,224.65,4.48597635]
[1737980857646,7.736e-05,224.7,224.65,0.03227635]
[1737980858050,4.4533,224.68,224.65,0.03227635]
[1737980859148,4.4533,224.68,224.65,4.48607635]
[1737980859350,4.4533,224.68,224.65,0.03227635]
[1737980860351,10.45882727,224.67,224.57,1.3938]
[1737980860545,10.45882727,224.67,224.52,10.45882727]
[1737980860749,10.45882727,224.64,224.5,2.8617]
[1737980860950,10.45882727,224.64,224.51,0.80163145]
[1737980861149,10.45882727,224.58,224.51,0.80163145]
[1737980861448,4.4563,224.52,224.49,182.28273964]
[1737980861643,0.03166256,224.57,224.45,182.28273964]
[1737980861848,10.45882727,224.58,224.48,0.02811997]
[1737980862151,0.02944812,224.53,224.48,0.02811997]
[1737980862348,10.45882727,224.61,224.46,10.45882727]
[1737980862749,0.0308211,224.52,224.51,4.4565]
[1737980863048,10.45882727,224.61,224.51,4.4565]
[1737980863245,0.0339483,224.54,224.49,0.02975411]
[1737980863449,0.0339483,224.54,224.52,4.4563]
[1737980863849,0.0339483,224.54,224.53,4.4561]
[1737980864846,0.0339483,224.54,224.49,0.03141472]
[1737980865752,0.0339483,224.54,224.49,4.48831472]
[1737980866656,10.45882727,224.52,224.4,10.45882727]
[1737980866853,10.45882727,224.52,224.37,10.45882727]
[1737980867154,10.45882727,224.49,224.35,182.28273964]
[1737980867453,10.45882727,224.49,224.36,0.80214058]
[1737980867851,0.03313606,224.45,224.4,0.03118649]
[1737980868253,0.03313606,224.45,224.42,4.4582]
[1737980869454,0.03313606,224.45,224.4,0.03118649]
[1737980869654,4.49083606,224.45,224.4,0.03118649]
[1737980870055,4.49103606,224.45,224.4,0.03118649]
[1737980870259,0.03313606,224.45,224.4,0.03118649]
[1737980871158,4.49103606,224.45,224.4,0.03118649]
[1737980871457,0.03313606,224.45,224.27,19.54963486]
[1737980871658,1.4239,224.44,224.28,0.80240813]
[1737980872157,4.4585,224.42,224.36,4.4595]
[1737980872558,4.48868865,224.41,224.37,0.02358113]
[1737980873458,4.4589,224.4,224.37,0.02358113]
[1737980873856,0.03018865,224.41,224.37,0.02358113]
[1737980874157,4.4591,224.39,224.37,0.02358113]
[1737980874349,0.03018865,224.41,224.37,0.02358113]
[1737980874557,16.77603486,224.38,224.19,19.79603486]
[1737980874755,16.77603486,224.38,224.2,0.80254782]
[1737980874956,4.4595,224.37,224.32,4.4603]
[1737980875157,16.77603486,224.38,224.21,1.346]
[1737980875358,16.77603486,224.38,224.22,0.8025695]
[1737980875660,0.02939345,224.32,224.22,0.8025695]
[1737980876464,0.02939345,224.32,224.31,4.4605]
[1737980876662,0.02939345,224.32,224.21,1.346]
[1737980876961,0.02939345,224.32,224.22,0.80258325]
[1737980877357,0.02939345,224.32,224.31,4.4605]
[1737980877560,0.02939345,224.32,224.22,0.80258325]
[1737980877764,0.02939345,224.32,224.21,1.346]
[1737980877962,0.02939345,224.32,224.31,4.4605]
[1737980882063,1.4239,224.44,224.27,16.77603486]
[1737980882257,1.4239,224.44,224.28,2.99416817]
[1737980882463,1.3815,224.47,224.44,4.4579]
[1737980883466,1.3815,224.47,224.45,4.4577]
[1737980883667,0.02944047,224.48,224.45,4.4577]
[1737980884165,0.02944047,224.48,224.43,0.02939345]
[1737980885664,0.02944047,224.48,224.32,0.80228566]
[1737980885967,16.77603486,224.42,224.28,1.3614]
[1737980886167,4.4599,224.35,224.29,4.4609]
[1737980886360,16.77603486,224.38,224.28,1.3614]
[1737980886771,4.4595,224.37,224.28,4.4611]
[1737980886967,0.03019103,224.35,224.24,43.14010723]
[1737980887169,0.03019103,224.35,224.25,0.80254788]
[1737980887468,4.4603,224.32,224.27,4.4613]
[1737980887766,16.77603486,224.31,224.2,1.3308]
[1737980887970,4.4617,224.25,224.08,18.21163486]
[1737980888269,4.4617,224.25,224.09,0.80289006]
[1737980888465,0.03370395,224.19,224.18,4.4631]
[1737980888770,4.4619,224.24,224.18,4.4631]
[1737980889069,0.03413975,224.21,224.18,4.4631]
[1737980889369,0.03413975,224.21,224.15,4.4636]
[1737980889967,0.03413975,224.21,224.05,182.28273964]
[1737980890169,16.77603486,224.22,224.06,0.80311383]
[1737980890471,0.03206411,224.15,224.03,1.4217]
[1737980891470,4.49586411,224.15,224.07,4.4651]
[1737980891765,0.03206411,224.15,224.03,1.4217]
[1737980891967,0.03206411,224.15,224.13,4.4641]
[1737980892573,0.03206411,224.15,224.13,4.464]
[1737980892769,0.03206411,224.15,224.04,16.77603486]
[1737980893075,0.03206411,224.15,224.09,4.4648]
[1737980893471,0.03206411,224.15,224.03,1.4217]
[1737980893672,0.03206411,224.15,224.1,4.4646]
[1737980893873,0.03206411,224.15,224.03,1.4217]
[1737980894171,0.03206411,224.15,224.11,4.4644]
[1737980895076,0.03206411,224.15,224.03,1.4217]
[1737980895277,0.03206411,224.15,224.09,4.4648]
[1737980895675,0.03206411,224.15,224.1,4.4646]
[1737980895874,0.03206411,224.15,224.03,1.4217]
[1737980896372,0.03206411,224.15,223.85,39.09523486]
[1737980896373,16.77603486,224.13,223.99,1.4012]
[1737980896569,1.3656,224.12,223.99,1.4012]
[1737980896771,0.02955298,224.08,224.02,4.4661]
[1737980896975,0.02955298,224.08,223.99,1.4012]
[1737980897377,0.02955298,224.08,224.04,4.4659]
[1737980898080,0.02955298,224.08,223.99,1.4012]
[1737980898879,0.02955298,224.08,224.03,4.4659]
[1737980899276,0.02955298,224.08,224.04,4.4659]
[1737980899471,16.77603486,224.29,223.99,1.4012]
[1737980899681,4.2754,224.23,224.02,16.77603486]
[1737980900779,0.0309582,224.12,224.08,0.02955298]
[1737980900975,16.77603486,224.22,224.08,0.02955298]
[1737980901177,16.77603486,224.18,224.0,0.862]
[1737980902076,0.03416707,224.11,224.0,0.862]
[1737980902284,0.03416707,224.11,224.07,0.03013512]
[1737980902680,0.03416707,224.11,224.09,4.4647]
[1737980902876,0.03416707,224.11,224.07,0.03013512]
[1737980903381,4.49866707,224.11,224.07,0.03013512]
[1737980903576,0.03416707,224.11,224.07,0.03013512]
[1737980904384,4.4651,224.08,224.07,0.03013512]
[1737980906780,0.03416707,224.11,224.07,0.03013512]
[1737980907387,16.77603486,224.22,224.07,0.03013512]
[1737980907591,4.4632,224.18,224.02,16.77603486]
[1737980907883,16.77603486,224.22,224.03,1.4702]
[1737980908087,4.4629,224.19,224.03,4.5102]
[1737980908290,16.77603486,224.22,224.03,4.5102]
[1737980908479,0.03040034,224.13,224.1,4.4646]
[1737980908683,4.4631,224.18,224.03,4.5102]
[1737980908883,0.02865825,224.14,224.09,0.03101051]
[1737980909485,0.02865825,224.14,224.1,4.4646]
[1737980909685,0.02865825,224.14,224.09,0.03101051]
[1737980911092,0.02865825,224.14,224.1,4.4645]
[1737980911485,0.02865825,224.14,224.09,0.03101051]
[1737980912392,0.02865825,224.14,224.11,4.4645]
[1737980912589,0.02865825,224.14,224.09,0.03101051]
[1737980913192,0.02865825,224.14,224.11,4.4643]
[1737980913691,4.49255825,224.14,224.1,4.4646]
[1737980914094,0.02865825,224.14,224.09,0.03101051]
[1737980915797,16.80469311,224.14,224.09,0.03101051]
[1737980916091,1.3842,224.13,224.09,0.03101051]
[1737980916596,4.4647,224.1,224.09,0.03101051]
[1737980920397,4.4645,224.11,224.09,0.03101051]
[1737980920597,1.3842,224.13,224.09,0.03101051]
[1737980920995,0.02865825,224.14,224.09,0.03101051]
[1737980921796,0.02865825,224.14,224.13,4.4641]
[1737980923095,0.02865825,224.14,224.09,0.03101051]
[1737980923599,10.53939843,224.14,224.09,0.03101051]
[1737980923799,0.02865825,224.14,224.09,0.03101051]
[1737980924197,4.49255825,224.14,224.1,4.4645]
[1737980924396,0.02865825,224.14,224.09,0.03101051]
[1737980924792,4.4643,224.12,224.09,0.03101051]
[1737980926600,4.4647,224.1,224.09,0.03101051]
[1737980926799,0.02865825,224.14,224.09,0.03101051]
[1737980927700,4.4644,224.12,224.09,0.03101051]
[1737980927901,0.02865825,224.14,224.09,0.03101051]
[1737980928801,4.4647,224.11,224.09,0.03101051]
[1737980929103,0.02865825,224.14,224.09,0.03101051]
[1737980929501,4.4647,224.1,224.09,0.03101051]
[1737980929697,16.82446688,224.13,224.0,1.4232]
[1737980929903,19.63656688,224.13,224.0,1.4232]
[1737980930110,4.4655,224.07,224.02,4.4661]
[1737980930307,19.63656688,224.13,224.0,1.4232]
[1737980930505,2.8121,224.13,224.0,1.4232]
[1737980930802,4.4652,224.08,224.04,0.02968995]
[1737980931203,0.03273464,224.09,224.04,0.02968995]
[1737980931404,4.4652,224.08,224.04,0.02968995]
[1737980931703,0.03273464,224.09,224.04,0.02968995]
[1737980934003,4.4657,224.05,224.04,0.02968995]
[1737980934807,1.46153464,224.09,224.04,0.02968995]
[1737980935506,0.03273464,224.09,224.04,0.02968995]
[1737980936209,4.49773464,224.09,224.04,0.02968995]
[1737980936508,0.03273464,224.09,224.04,0.02968995]
[1737980936809,4.49763464,224.09,224.04,0.02968995]
[1737980937210,0.03273464,224.09,224.04,0.02968995]
[1737980938119,4.4655,224.07,224.04,0.02968995]
[1737980938813,0.03273464,224.09,224.04,0.02968995]
[1737980940217,4.4657,224.05,224.04,0.02968995]
[1737980940418,0.03273464,224.09,224.04,0.02968995]
[1737980940918,4.4657,224.05,224.04,0.02968995]
[1737980941221,0.03273464,224.09,223.9,16.82446688]
[1737980941520,4.4665,224.02,223.97,4.4673]
[1737980941819,16.82446688,224.06,223.87,182.28273964]
[1737980942119,16.82446688,224.06,223.94,4.4679]
[1737980942415,0.03168615,223.99,223.94,4.49752126]
[1737980942720,4.4671,223.98,223.94,4.49752126]
[1737980943018,0.03168615,223.99,223.94,0.02962126]
[1737980943219,4.4671,223.98,223.94,0.02962126]
[1737980943521,0.03168615,223.99,223.94,0.02962126]
[1737980944118,0.03168615,223.99,223.95,4.4676]
[1737980944317,0.03168615,223.99,223.94,0.02962126]
[1737980944817,0.03168615,223.99,223.95,4.4676]
[1737980945122,0.03168615,223.99,223.94,0.02962126]
[1737980945921,4.4671,223.98,223.94,0.02962126]
[1737980946321,0.03168615,223.99,223.94,0.02962126]
[1737980947122,21.05001528,223.96,223.76,10.52500764]
[1737980947333,10.52500764,223.9,223.81,0.80419156]
[1737980947620,14.99390764,223.9,223.83,4.4701]
[1737980947821,10.52500764,223.9,223.79,1.4064]
[1737980948021,10.52500764,223.87,223.75,0.9219]
[1737980948217,4.4699,223.84,223.77,4.4711]
[1737980948617,14.99490764,223.84,223.77,4.4711]
[1737980949024,14.99490764,223.84,223.75,0.9219]
[1737980949227,4.4703,223.82,223.71,183.70463964]
[1737980949528,10.52500764,223.74,223.71,67.02315963]
[1737980950523,0.03233423,223.75,223.71,67.02315963]
[1737980950927,16.88666322,223.85,223.71,67.02315963]
[1737980951126,16.88666322,223.89,223.72,2.868]
[1737980951323,22.97733796,223.89,223.72,2.868]
[1737980952025,22.97733796,223.89,223.73,16.88666322]
[1737980952227,0.02816996,223.83,223.79,4.4708]
[1737980952426,6.09067474,223.89,223.78,0.03027825]
[1737980953133,16.88666322,223.93,223.78,0.03027825]
[1737980953327,16.88666322,223.97,223.78,0.03027825]
[1737980953629,0.03418327,223.88,223.83,0.0302101]
[1737980953831,16.88666322,223.97,223.83,0.0302101]
[1737980954022,16.88666322,223.97,223.9,4.4686]
[1737980954226,16.88666322,223.97,223.81,16.88666322]
[1737980954422,16.88666322,223.97,223.82,1.4249]
[1737980954825,16.88666322,224.01,223.82,1.4249]
[1737980955030,0.03311765,223.92,223.82,1.4249]
[1737980955230,0.03311765,223.92,223.89,0.03285707]
[1737980955929,0.03311765,223.92,223.9,4.4686]
[1737980956430,0.03311765,223.92,223.89,0.03285707]
[1737980957130,0.03311765,223.92,223.9,4.4686]
[1737980957530,0.03311765,223.92,223.89,0.03285707]
[1737980958630,4.50141765,223.92,223.89,0.03285707]
[1737980958826,0.03311765,223.92,223.89,0.03285707]
[1737980959223,0.03311765,223.92,223.89,4.50175707]
[1737980959430,0.03311765,223.92,223.89,0.03285707]
[1737980959733,0.03311765,223.92,223.89,4.50175707]
[1737980959926,0.03311765,223.92,223.89,0.03285707]
[1737980960127,16.88666322,224.07,223.89,0.03285707]
[1737980960327,4.4662,224.03,223.87,1.3467]
[1737980960629,16.88666322,224.07,223.87,1.3467]
[1737980960831,4.4654,224.07,224.02,4.4663]
[1737980961029,16.88666322,224.11,223.9,16.88666322]
[1737980961229,0.02961168,224.07,224.02,0.02844357]
[1737980961432,16.88666322,224.11,224.02,0.02844357]
[1737980961633,21.35126322,224.11,224.05,4.4656]
[1737980961827,0.02898054,224.09,224.05,4.4656]
[1737980962030,0.02898054,224.09,224.02,0.02844357]
[1737980962836,0.02898054,224.09,224.07,4.4652]
[1737980963537,22.97733796,224.19,224.02,0.02844357]
[1737980963733,22.97733796,224.19,224.0,2.8465]
[1737980964036,6.09067474,224.19,224.03,16.88666322]
[1737980964432,4.4632,224.18,224.03,16.88666322]
[1737980964626,0.03352974,224.13,224.09,0.03029846]
[1737980965836,10.55367474,224.19,224.09,0.03029846]
[1737980966039,6.09067474,224.19,224.09,0.03029846]
[1737980966436,6.09067474,224.19,224.17,4.4632]
[1737980967139,0.03080504,224.2,224.17,4.4632]
[1737980968341,4.49350504,224.2,224.16,0.030234]
[1737980968545,0.03080504,224.2,224.16,0.030234]
[1737980970443,16.91746826,224.2,224.16,0.030234]
[1737980970643,16.91746826,224.2,223.99,16.88666322]
[1737980970844,16.88666322,224.15,223.99,16.88666322]
[1737980971046,16.88666322,224.15,224.09,4.4648]
[1737980971345,16.88666322,224.15,224.01,1.4474]
[1737980971844,0.0333329,224.1,224.06,0.02851858]
[1737980972345,0.02965436,224.1,224.07,4.4652]
[1737980972545,4.4635,224.16,224.06,0.03103836]
[1737980972745,16.88666322,224.19,224.06,0.03103836]
[1737980973043,4.4633,224.17,224.06,0.03103836]
[1737980973244,16.88666322,224.19,224.06,0.03103836]
[1737980973746,0.03325879,224.15,224.08,4.4649]
[1737980973947,0.03325879,224.15,224.06,0.03103836]
[1737980974148,0.03325879,224.15,224.03,16.88666322]
[1737980974348,0.03325879,224.15,224.08,0.03343347]
[1737980974753,0.03325879,224.15,224.14,4.4639]
[1737980975745,0.03325879,224.15,224.08,0.03343347]
[1737980975951,16.91992201,224.15,224.08,0.03343347]
[1737980976252,0.03325879,224.15,224.08,0.03343347]
[1737980977152,0.03325879,224.15,224.14,4.4639]
[1737980977653,0.03325879,224.15,224.12,4.4643]
[1737980977851,0.03325879,224.15,224.08,0.03343347]
[1737980978552,0.03325879,224.15,224.1,4.4647]
[1737980978854,16.91992201,224.15,224.08,0.03343347]
[1737980979054,4.4641,224.13,224.08,4.49843347]
[1737980979352,16.91992201,224.15,224.08,0.03343347]
[1737980979653,16.91992201,224.15,224.1,4.4645]
[1737980979953,16.91992201,224.15,224.08,0.03343347]
[1737980980355,4.4642,224.13,224.09,4.4647]
[1737980980954,4.4645,224.12,224.08,4.49843347]
[1737980981152,16.91992201,224.15,224.08,0.03343347]
[1737980981659,4.4641,224.13,224.09,4.4649]
[1737980982555,10.54813152,224.15,224.08,0.03343347]
[1737980982763,4.4643,224.12,224.08,4.49853347]
[1737980984560,4.4643,224.12,224.09,4.4649]
[1737980986861,0.03325879,224.15,224.08,0.03343347]
[1737980987165,10.51487273,224.24,224.1,10.51487273]
[1737980987363,10.51487273,224.3,224.16,10.51487273]
[1737980987560,10.51487273,224.33,224.19,10.51487273]
[1737980987956,10.51487273,224.36,224.22,10.51487273]
[1737980988166,10.51487273,224.39,224.25,10.51487273]
[1737980988359,0.03144199,224.31,224.27,0.03264154]
[1737980988562,24.36269896,224.41,224.27,0.03264154]
[1737980988762,24.36269896,224.41,224.26,18.15369622]
[1737980988962,24.36269896,224.41,224.38,4.4586]
[1737980989157,24.36269896,224.41,224.3,16.78309622]
[1737980989458,24.36269896,224.41,224.36,4.459]
[1737980989658,24.36269896,224.41,224.31,1.3874]
[1737980990068,24.3953935,224.41,224.36,0.03116563]
[1737980990264,0.03269454,224.41,224.36,0.03116563]
[1737980991264,4.4584,224.4,224.36,0.03116563]
[1737980991567,0.03269454,224.41,224.23,3.04]
[1737980991866,16.78309622,224.42,224.24,1.3502]
[1737980992667,0.03162927,224.35,224.31,0.02842289]
[1737980993165,0.03162927,224.35,224.31,4.48842289]
[1737980993360,0.03162927,224.35,224.31,0.02842289]
[1737980994170,16.84709622,224.5,224.31,0.02842289]
[1737980994471,16.84709622,224.5,224.3,16.78309622]
[1737980995071,16.78309622,224.5,224.3,16.78309622]
[1737980995268,0.033376,224.42,224.4,4.4582]
[1737980995573,16.78309622,224.54,224.34,16.78309622]
[1737980995762,16.78309622,224.58,224.38,16.78309622]
[1737980995968,16.78309622,224.62,224.42,16.78309622]
[1737980996272,16.78309622,224.62,224.5,4.4562]
[1737980996472,16.78309622,224.62,224.43,2.904]
[1737980996774,4.4557,224.54,224.47,4.4568]
[1737980997074,16.78309622,224.49,224.33,16.78309622]
[1737980997370,21.23959622,224.49,224.48,9.603e-05]
[1737980997565,16.78309622,224.49,224.3,2.8841]
[1737980997770,16.78309622,224.45,224.3,2.8841]
[1737980997963,4.4595,224.34,224.3,2.8841]